[Event "Titled Tuesday Blitz July 25 Late 2023"]
[White "Kaganskiy, Gleb"]
[Black "Suder, Jakub"]
[WhiteFideId "4132025"]
[BlackFideId "1195310"]
[WhiteElo "2291"]
[BlackElo "2529"]
[Result "1-0"]
[Round "3"]
[TimeControl "180+2"]
[Date "2023.07.25"]
[WhiteClock "0:00:44"]
[BlackClock "0:01:15"]
[Board "127"]

1. e4 {[%clk 0:03:00]}  c5 {[%clk 0:02:57]} 2. Nc3 {[%clk 0:03:01]}  e6 {[%clk 0:02:56]} 3. f4 {[%clk 0:02:52]}  d5 {[%clk 0:02:45]} 4. Nf3 {[%clk 0:02:51]}  Nc6 {[%clk 0:02:43]} 5. Bb5 {[%clk 0:02:39]}  Ne7 {[%clk 0:02:33]} 6. O-O {[%clk 0:02:32]}  a6 {[%clk 0:02:28]} 7. Bxc6+ {[%clk 0:02:21]}  Nxc6 {[%clk 0:02:27]} 8. exd5 {[%clk 0:02:19]}  exd5 {[%clk 0:02:26]} 9. d4 {[%clk 0:02:17]}  cxd4 {[%clk 0:02:23]} 10. Nxd4 {[%clk 0:02:17]}  Bc5 {[%clk 0:02:24]} 11. Re1+ {[%clk 0:02:06]}  Be6 {[%clk 0:02:19]} 12. f5 {[%clk 0:02:01]}  Nxd4 {[%clk 0:02:03]} 13. fxe6 {[%clk 0:01:54]}  Nxe6+ {[%clk 0:02:03]} 14. Kh1 {[%clk 0:01:52]}  O-O {[%clk 0:02:03]} 15. Qxd5 {[%clk 0:01:46]}  Qh4 {[%clk 0:01:59]} 16. Be3 {[%clk 0:01:39]}  Rad8 {[%clk 0:01:51]} 17. Qxb7 {[%clk 0:01:38]}  Bxe3 {[%clk 0:01:49]} 18. Rxe3 {[%clk 0:01:38]}  Rd2 {[%clk 0:01:49]} 19. Rf1 {[%clk 0:01:13]}  Rxc2 {[%clk 0:01:35]} 20. Nd5 {[%clk 0:00:51]}  Qd4 {[%clk 0:01:26]} 21. Rxe6 {[%clk 0:00:46]}  Qg4 {[%clk 0:01:15]} 22. Qxf7+ {[%clk 0:00:44]} 1-0


[Site "https://www.chess.com"]

[Event "Titled Tuesday Blitz July 25 Late 2023"]
[White "Garakov, Mikhael"]
[Black "Ankerst, Mihael"]
[WhiteFideId "4169034"]
[BlackFideId "14602369"]
[WhiteElo "2527"]
[BlackElo "2292"]
[Result "1-0"]
[Round "3"]
[TimeControl "180+2"]
[Date "2023.07.25"]
[WhiteClock "0:02:33"]
[BlackClock "0:01:33"]
[Board "128"]

1. e4 {[%clk 0:03:00]}  c5 {[%clk 0:02:56]} 2. Nf3 {[%clk 0:03:01]}  Qb6 {[%clk 0:02:55]} 3. Nc3 {[%clk 0:03:00]}  Nc6 {[%clk 0:02:54]} 4. Be2 {[%clk 0:02:55]}  e6 {[%clk 0:02:55]} 5. O-O {[%clk 0:02:55]}  a6 {[%clk 0:02:55]} 6. a3 {[%clk 0:02:53]}  d6 {[%clk 0:02:55]} 7. Rb1 {[%clk 0:02:52]}  Qc7 {[%clk 0:02:55]} 8. b4 {[%clk 0:02:48]}  b5 {[%clk 0:02:54]} 9. d4 {[%clk 0:02:41]}  cxd4 {[%clk 0:02:53]} 10. Nxd4 {[%clk 0:02:41]}  Nxb4 {[%clk 0:02:50]} 11. Ncxb5 {[%clk 0:02:39]}  axb5 {[%clk 0:02:44]} 12. Nxb5 {[%clk 0:02:39]}  Qxc2 {[%clk 0:02:41]} 13. Qxc2 {[%clk 0:02:39]}  Nxc2 {[%clk 0:02:40]} 14. Nc7+ {[%clk 0:02:39]}  Kd8 {[%clk 0:02:28]} 15. Nxa8 {[%clk 0:02:40]}  Nd4 {[%clk 0:02:24]} 16. Bd3 {[%clk 0:02:38]}  Nf6 {[%clk 0:02:04]} 17. Be3 {[%clk 0:02:38]}  e5 {[%clk 0:01:57]} 18. Rfc1 {[%clk 0:02:37]}  Be7 {[%clk 0:01:33]} 19. Rb8 {[%clk 0:02:33]} 1-0


[Site "https://www.chess.com"]

[Event "Titled Tuesday Blitz July 25 Late 2023"]
[White "Broca Jimenez, Fernando"]
[Black "Karamsetty, Jeevan"]
[WhiteFideId "5104742"]
[BlackFideId "2025337"]
[WhiteElo "2285"]
[BlackElo "2527"]
[Result "0-1"]
[Round "3"]
[TimeControl "180+2"]
[Date "2023.07.25"]
[WhiteClock "0:00:05"]
[BlackClock "0:00:53"]
[Board "129"]

1. e4 {[%clk 0:03:00]}  g6 {[%clk 0:02:59]} 2. d4 {[%clk 0:02:59]}  Bg7 {[%clk 0:03:00]} 3. c4 {[%clk 0:02:58]}  d6 {[%clk 0:03:00]} 4. Nc3 {[%clk 0:02:57]}  e5 {[%clk 0:02:59]} 5. Nf3 {[%clk 0:02:54]}  Nc6 {[%clk 0:02:57]} 6. Be3 {[%clk 0:02:54]}  Bg4 {[%clk 0:02:52]} 7. d5 {[%clk 0:02:53]}  Nd4 {[%clk 0:02:50]} 8. Be2 {[%clk 0:02:53]}  Bxf3 {[%clk 0:02:51]} 9. Bxf3 {[%clk 0:02:52]}  c5 {[%clk 0:02:51]} 10. dxc6 {[%clk 0:02:51]}  bxc6 {[%clk 0:02:52]} 11. g3 {[%clk 0:02:43]}  Rb8 {[%clk 0:02:46]} 12. Rb1 {[%clk 0:02:34]}  Ne7 {[%clk 0:02:38]} 13. O-O {[%clk 0:02:33]}  O-O {[%clk 0:02:37]} 14. Bg2 {[%clk 0:02:27]}  a5 {[%clk 0:02:30]} 15. Qd2 {[%clk 0:02:15]}  Qc7 {[%clk 0:02:23]} 16. f4 {[%clk 0:02:02]}  f5 {[%clk 0:02:20]} 17. Ne2 {[%clk 0:01:32]}  c5 {[%clk 0:02:10]} 18. Nc3 {[%clk 0:01:26]}  Kh8 {[%clk 0:01:42]} 19. exf5 {[%clk 0:00:52]}  gxf5 {[%clk 0:01:37]} 20. fxe5 {[%clk 0:00:42]}  dxe5 {[%clk 0:01:38]} 21. Nd5 {[%clk 0:00:33]}  Nxd5 {[%clk 0:01:36]} 22. Bxd5 {[%clk 0:00:32]}  Qd6 {[%clk 0:01:24]} 23. b3 {[%clk 0:00:20]}  Qg6 {[%clk 0:01:07]} 24. Kh1 {[%clk 0:00:20]}  a4 {[%clk 0:01:03]} 25. Rf2 {[%clk 0:00:16]}  axb3 {[%clk 0:01:03]} 26. axb3 {[%clk 0:00:15]}  f4 {[%clk 0:01:02]} 27. Bxd4 {[%clk 0:00:14]}  Qxb1+ {[%clk 0:01:01]} 28. Kg2 {[%clk 0:00:13]}  cxd4 {[%clk 0:00:58]} 29. gxf4 {[%clk 0:00:11]}  Qg6+ {[%clk 0:00:57]} 30. Kh1 {[%clk 0:00:10]}  Rxb3 {[%clk 0:00:53]} 31. Qd1 {[%clk 0:00:06]}  Rb1 {[%clk 0:00:53]} 32. Rf1 {[%clk 0:00:05]}  Rxd1 {[%clk 0:00:53]} 0-1


[Site "https://www.chess.com"]

[Event "Titled Tuesday Blitz July 25 Late 2023"]
[White "Mohamed Saeed Laily"]
[Black "Chor, Kevin"]
[WhiteFideId "9314946"]
[BlackFideId "2090740"]
[WhiteElo "2269"]
[BlackElo "2525"]
[Result "1/2-1/2"]
[Round "3"]
[TimeControl "180+2"]
[Date "2023.07.25"]
[WhiteClock "0:00:07"]
[BlackClock "0:00:10"]
[Board "131"]

1. d4 {[%clk 0:03:00]}  Nf6 {[%clk 0:02:59]} 2. Bg5 {[%clk 0:03:00]}  Ne4 {[%clk 0:02:59]} 3. Bf4 {[%clk 0:03:00]}  c5 {[%clk 0:02:59]} 4. f3 {[%clk 0:03:00]}  Qa5+ {[%clk 0:02:59]} 5. c3 {[%clk 0:02:59]}  Nf6 {[%clk 0:02:59]} 6. Nd2 {[%clk 0:03:00]}  cxd4 {[%clk 0:02:59]} 7. Nb3 {[%clk 0:03:00]}  Qb6 {[%clk 0:03:00]} 8. Qxd4 {[%clk 0:03:00]}  Qxd4 {[%clk 0:03:00]} 9. cxd4 {[%clk 0:02:41]}  d5 {[%clk 0:02:52]} 10. e3 {[%clk 0:02:39]}  e6 {[%clk 0:02:41]} 11. Ne2 {[%clk 0:02:38]}  Bb4+ {[%clk 0:02:39]} 12. Kf2 {[%clk 0:02:35]}  O-O {[%clk 0:02:39]} 13. a3 {[%clk 0:02:35]}  Be7 {[%clk 0:02:38]} 14. Nc3 {[%clk 0:02:34]}  Nh5 {[%clk 0:02:29]} 15. Be5 {[%clk 0:02:21]}  Nc6 {[%clk 0:02:10]} 16. g4 {[%clk 0:02:20]}  Nf6 {[%clk 0:02:07]} 17. Bg3 {[%clk 0:02:15]}  Bd7 {[%clk 0:02:03]} 18. Bd3 {[%clk 0:02:08]}  Rac8 {[%clk 0:01:48]} 19. Rac1 {[%clk 0:02:07]}  Ne8 {[%clk 0:01:42]} 20. Nc5 {[%clk 0:01:37]}  Bxc5 {[%clk 0:01:27]} 21. dxc5 {[%clk 0:01:38]}  d4 {[%clk 0:01:26]} 22. Nb5 {[%clk 0:01:27]}  dxe3+ {[%clk 0:01:24]} 23. Kxe3 {[%clk 0:01:28]}  e5 {[%clk 0:01:06]} 24. Rhd1 {[%clk 0:00:58]}  a6 {[%clk 0:00:59]} 25. Be4 {[%clk 0:00:54]}  Nf6 {[%clk 0:00:48]} 26. Nd6 {[%clk 0:00:48]}  Rb8 {[%clk 0:00:43]} 27. Bxc6 {[%clk 0:00:42]}  Bxc6 {[%clk 0:00:42]} 28. Bxe5 {[%clk 0:00:37]}  Nd5+ {[%clk 0:00:40]} 29. Kd4 {[%clk 0:00:36]}  f6 {[%clk 0:00:38]} 30. Bg3 {[%clk 0:00:35]}  Rbd8 {[%clk 0:00:37]} 31. Re1 {[%clk 0:00:34]}  Nc7 {[%clk 0:00:22]} 32. b4 {[%clk 0:00:23]}  Bxf3 {[%clk 0:00:21]} 33. Ke3 {[%clk 0:00:15]}  Bc6 {[%clk 0:00:16]} 34. Kf2 {[%clk 0:00:13]}  Nb5 {[%clk 0:00:16]} 35. Nxb5 {[%clk 0:00:12]}  axb5 {[%clk 0:00:16]} 36. Bd6 {[%clk 0:00:12]}  Rfe8 {[%clk 0:00:16]} 37. Rxe8+ {[%clk 0:00:12]}  Rxe8 {[%clk 0:00:17]} 38. Re1 {[%clk 0:00:13]}  Rxe1 {[%clk 0:00:12]} 39. Kxe1 {[%clk 0:00:13]}  Kf7 {[%clk 0:00:13]} 40. Kf2 {[%clk 0:00:13]}  Ke6 {[%clk 0:00:13]} 41. Ke3 {[%clk 0:00:10]}  Kd5 {[%clk 0:00:13]} 42. Bf8 {[%clk 0:00:08]}  g6 {[%clk 0:00:11]} 43. Bg7 {[%clk 0:00:08]}  f5 {[%clk 0:00:07]} 44. gxf5 {[%clk 0:00:08]}  gxf5 {[%clk 0:00:08]} 45. Kf4 {[%clk 0:00:09]}  Bd7 {[%clk 0:00:08]} 46. Bb2 {[%clk 0:00:07]}  Kc4 {[%clk 0:00:08]} 47. Bc1 {[%clk 0:00:07]}  Kb3 {[%clk 0:00:09]} 48. Ke5 {[%clk 0:00:07]}  Kc2 {[%clk 0:00:09]} 49. Bf4 {[%clk 0:00:07]}  Kb2 {[%clk 0:00:09]} 50. Kd6 {[%clk 0:00:06]}  Bc6 {[%clk 0:00:10]} 51. Ke5 {[%clk 0:00:06]}  Be4 {[%clk 0:00:10]} 52. Ke6 {[%clk 0:00:02]}  Kxa3 {[%clk 0:00:10]} 53. Bd2 {[%clk 0:00:02]}  Kb3 {[%clk 0:00:09]} 54. Ke5 {[%clk 0:00:03]}  Kc4 {[%clk 0:00:09]} 55. Be1 {[%clk 0:00:03]}  h5 {[%clk 0:00:09]} 56. h4 {[%clk 0:00:03]}  Kb3 {[%clk 0:00:08]} 57. Kf4 {[%clk 0:00:03]}  Kc4 {[%clk 0:00:08]} 58. Ke5 {[%clk 0:00:04]}  Kd3 {[%clk 0:00:08]} 59. Kf4 {[%clk 0:00:04]}  Ke2 {[%clk 0:00:09]} 60. Bc3 {[%clk 0:00:05]}  Kf2 {[%clk 0:00:09]} 61. Kg5 {[%clk 0:00:04]}  Kg3 {[%clk 0:00:09]} 62. Bd2 {[%clk 0:00:04]}  Kf3 {[%clk 0:00:07]} 63. Bc1 {[%clk 0:00:03]}  Kg3 {[%clk 0:00:05]} 64. Bf4+ {[%clk 0:00:03]}  Kh3 {[%clk 0:00:05]} 65. Bd2 {[%clk 0:00:03]}  Kg3 {[%clk 0:00:05]} 66. Bf4+ {[%clk 0:00:03]}  Kf3 {[%clk 0:00:06]} 67. Bd2 {[%clk 0:00:04]}  Bd3 {[%clk 0:00:05]} 68. Bc3 {[%clk 0:00:04]}  f4 {[%clk 0:00:04]} 69. Bd2 {[%clk 0:00:04]}  Ke4 {[%clk 0:00:04]} 70. Bxf4 {[%clk 0:00:04]}  Be2 {[%clk 0:00:05]} 71. Bd2 {[%clk 0:00:04]}  Kd4 {[%clk 0:00:05]} 72. Kf5 {[%clk 0:00:04]}  Kc4 {[%clk 0:00:06]} 73. Kg5 {[%clk 0:00:04]}  Kd3 {[%clk 0:00:06]} 74. Be1 {[%clk 0:00:05]}  Bf3 {[%clk 0:00:06]} 75. Kf4 {[%clk 0:00:04]}  Bg4 {[%clk 0:00:07]} 76. Kg5 {[%clk 0:00:05]}  Kc4 {[%clk 0:00:08]} 77. Kf4 {[%clk 0:00:05]}  Kd5 {[%clk 0:00:08]} 78. Kg5 {[%clk 0:00:06]}  Kc6 {[%clk 0:00:09]} 79. Kf4 {[%clk 0:00:06]}  Kd5 {[%clk 0:00:10]} 80. Kg5 {[%clk 0:00:06]}  Kc6 {[%clk 0:00:10]} 81. Kf4 {[%clk 0:00:07]}  b6 {[%clk 0:00:11]} 82. cxb6 {[%clk 0:00:06]}  Kxb6 {[%clk 0:00:12]} 83. Ke5 {[%clk 0:00:07]}  Kc6 {[%clk 0:00:10]} 84. Bc3 {[%clk 0:00:07]} 1/2-1/2


[Site "https://www.chess.com"]

[Event "Titled Tuesday Blitz July 25 Late 2023"]
[White "Celestino, Rafael Teixeira"]
[Black "Martinez Reyes, Pedro Ramon"]
[WhiteFideId "2108925"]
[BlackFideId "3901807"]
[WhiteElo "2267"]
[BlackElo "2525"]
[Result "0-1"]
[Round "3"]
[TimeControl "180+2"]
[Date "2023.07.25"]
[WhiteClock "0:00:11"]
[BlackClock "0:00:36"]
[Board "132"]

1. e4 {[%clk 0:03:00]}  d5 {[%clk 0:02:57]} 2. exd5 {[%clk 0:03:00]}  Qxd5 {[%clk 0:02:58]} 3. Nc3 {[%clk 0:03:00]}  Qd6 {[%clk 0:02:59]} 4. Bc4 {[%clk 0:03:00]}  Nf6 {[%clk 0:02:58]} 5. Qe2 {[%clk 0:02:54]}  Nc6 {[%clk 0:02:56]} 6. Nb5 {[%clk 0:02:52]}  Qd8 {[%clk 0:02:52]} 7. Nf3 {[%clk 0:02:49]}  a6 {[%clk 0:02:52]} 8. Nc3 {[%clk 0:02:48]}  Bg4 {[%clk 0:02:52]} 9. Ne5 {[%clk 0:02:10]}  Nxe5 {[%clk 0:02:45]} 10. Qxe5 {[%clk 0:02:11]}  e6 {[%clk 0:02:44]} 11. f3 {[%clk 0:02:02]}  Bf5 {[%clk 0:02:40]} 12. d3 {[%clk 0:02:02]}  Bd6 {[%clk 0:02:39]} 13. Qe2 {[%clk 0:02:02]}  O-O {[%clk 0:02:17]} 14. g4 {[%clk 0:02:02]}  Bg6 {[%clk 0:02:17]} 15. Bg5 {[%clk 0:02:01]}  Be7 {[%clk 0:02:10]} 16. h4 {[%clk 0:02:00]}  h6 {[%clk 0:02:05]} 17. Bd2 {[%clk 0:01:48]}  b5 {[%clk 0:02:00]} 18. Bb3 {[%clk 0:01:47]}  b4 {[%clk 0:02:00]} 19. Ne4 {[%clk 0:01:18]}  Nxe4 {[%clk 0:01:58]} 20. fxe4 {[%clk 0:01:19]}  Bxh4+ {[%clk 0:01:58]} 21. Kf1 {[%clk 0:01:20]}  Be7 {[%clk 0:01:44]} 22. Kg2 {[%clk 0:01:19]}  a5 {[%clk 0:01:37]} 23. Bf4 {[%clk 0:01:04]}  a4 {[%clk 0:01:32]} 24. Bc4 {[%clk 0:01:05]}  Ra5 {[%clk 0:01:32]} 25. Raf1 {[%clk 0:00:59]}  Bd6 {[%clk 0:01:31]} 26. Qd2 {[%clk 0:00:59]}  Bxf4 {[%clk 0:01:29]} 27. Qxf4 {[%clk 0:01:00]}  Rg5 {[%clk 0:01:30]} 28. Kf3 {[%clk 0:00:55]}  Qd4 {[%clk 0:01:29]} 29. Kg3 {[%clk 0:00:45]}  c5 {[%clk 0:01:25]} 30. Bxe6 {[%clk 0:00:42]}  Qxb2 {[%clk 0:01:18]} 31. Rh2 {[%clk 0:00:39]}  Qd4 {[%clk 0:01:10]} 32. Bc4 {[%clk 0:00:39]}  Qe5 {[%clk 0:00:55]} 33. Qxe5 {[%clk 0:00:29]}  Rxe5 {[%clk 0:00:56]} 34. Rhf2 {[%clk 0:00:30]}  Rg5 {[%clk 0:00:52]} 35. Kh4 {[%clk 0:00:30]}  Re5 {[%clk 0:00:50]} 36. Rf4 {[%clk 0:00:30]}  Rg5 {[%clk 0:00:47]} 37. R4f2 {[%clk 0:00:29]}  Re5 {[%clk 0:00:47]} 38. Rf4 {[%clk 0:00:29]}  Re7 {[%clk 0:00:47]} 39. R4f2 {[%clk 0:00:30]}  Kh7 {[%clk 0:00:47]} 40. Rf4 {[%clk 0:00:27]}  f6 {[%clk 0:00:47]} 41. Bb5 {[%clk 0:00:24]}  Re5 {[%clk 0:00:47]} 42. Bxa4 {[%clk 0:00:22]}  Rd8 {[%clk 0:00:46]} 43. Bb3 {[%clk 0:00:21]}  Rd4 {[%clk 0:00:47]} 44. Kh3 {[%clk 0:00:20]}  Be8 {[%clk 0:00:47]} 45. Kg3 {[%clk 0:00:20]}  Bd7 {[%clk 0:00:48]} 46. Rh1 {[%clk 0:00:20]}  Rg5 {[%clk 0:00:48]} 47. Ra1 {[%clk 0:00:16]}  h5 {[%clk 0:00:46]} 48. a3 {[%clk 0:00:17]}  bxa3 {[%clk 0:00:44]} 49. Rxa3 {[%clk 0:00:18]}  Bxg4 {[%clk 0:00:44]} 50. Kh4 {[%clk 0:00:15]}  Re5 {[%clk 0:00:43]} 51. Ra7 {[%clk 0:00:14]}  Kh6 {[%clk 0:00:43]} 52. Ra8 {[%clk 0:00:13]}  g5+ {[%clk 0:00:43]} 53. Kg3 {[%clk 0:00:12]}  gxf4+ {[%clk 0:00:43]} 54. Kxf4 {[%clk 0:00:13]}  Rd7 {[%clk 0:00:39]} 55. Rh8+ {[%clk 0:00:13]}  Kg6 {[%clk 0:00:38]} 56. Rg8+ {[%clk 0:00:13]}  Rg7 {[%clk 0:00:37]} 57. Rc8 {[%clk 0:00:13]}  Be6 {[%clk 0:00:37]} 58. Bxe6 {[%clk 0:00:12]}  Rxe6 {[%clk 0:00:38]} 59. Rxc5 {[%clk 0:00:12]}  Re5 {[%clk 0:00:38]} 60. Rc8 {[%clk 0:00:12]}  Rd7 {[%clk 0:00:37]} 61. Rg8+ {[%clk 0:00:12]}  Rg7 {[%clk 0:00:36]} 62. Ra8 {[%clk 0:00:12]}  h4 {[%clk 0:00:37]} 63. Ra1 {[%clk 0:00:13]}  Rh5 {[%clk 0:00:37]} 64. Rg1+ {[%clk 0:00:11]}  Kf7 {[%clk 0:00:36]} 65. Rh1 {[%clk 0:00:12]}  h3 {[%clk 0:00:37]} 66. Rh2 {[%clk 0:00:11]}  Rg2 {[%clk 0:00:36]} 0-1


[Site "https://www.chess.com"]

[Event "Titled Tuesday Blitz July 25 Late 2023"]
[White "Kozusek, Daniel"]
[Black "rikchessmx"]
[WhiteFideId "349500"]
[WhiteElo "2517"]
[BlackElo "2265"]
[Result "0-1"]
[Round "3"]
[TimeControl "180+2"]
[Date "2023.07.25"]
[WhiteClock "0:00:21"]
[BlackClock "0:00:01"]
[Board "133"]

1. d4 {[%clk 0:03:00]}  Nf6 {[%clk 0:02:47]} 2. Nf3 {[%clk 0:02:55]}  e6 {[%clk 0:02:46]} 3. Bf4 {[%clk 0:02:56]}  b6 {[%clk 0:02:46]} 4. e3 {[%clk 0:02:56]}  Bb7 {[%clk 0:02:46]} 5. Nbd2 {[%clk 0:02:56]}  d6 {[%clk 0:02:45]} 6. Bd3 {[%clk 0:02:50]}  g6 {[%clk 0:02:46]} 7. h4 {[%clk 0:02:47]}  h5 {[%clk 0:02:45]} 8. e4 {[%clk 0:02:45]}  Bg7 {[%clk 0:02:40]} 9. Qe2 {[%clk 0:02:45]}  Nbd7 {[%clk 0:02:39]} 10. Bg5 {[%clk 0:02:45]}  Qc8 {[%clk 0:02:35]} 11. e5 {[%clk 0:02:43]}  dxe5 {[%clk 0:02:32]} 12. dxe5 {[%clk 0:02:44]}  Ng4 {[%clk 0:02:30]} 13. Bf4 {[%clk 0:02:37]}  O-O {[%clk 0:02:25]} 14. O-O-O {[%clk 0:02:35]}  Nc5 {[%clk 0:02:25]} 15. Ne4 {[%clk 0:02:29]}  Bxe4 {[%clk 0:02:21]} 16. Bxe4 {[%clk 0:02:30]}  Nxe4 {[%clk 0:02:21]} 17. Qxe4 {[%clk 0:02:30]}  Nxf2 {[%clk 0:02:21]} 18. Qe3 {[%clk 0:02:29]}  Nxh1 {[%clk 0:02:19]} 19. Rxh1 {[%clk 0:02:30]}  Qd7 {[%clk 0:02:14]} 20. Bg5 {[%clk 0:02:28]}  Qa4 {[%clk 0:02:10]} 21. Kb1 {[%clk 0:02:20]}  c5 {[%clk 0:02:08]} 22. Rd1 {[%clk 0:02:14]}  Rfc8 {[%clk 0:01:54]} 23. b3 {[%clk 0:02:00]}  Qg4 {[%clk 0:01:49]} 24. Rd7 {[%clk 0:02:00]}  Qxg2 {[%clk 0:01:43]} 25. Qf4 {[%clk 0:01:59]}  Rf8 {[%clk 0:01:41]} 26. Be7 {[%clk 0:01:59]}  Qg4 {[%clk 0:01:33]} 27. Qe3 {[%clk 0:01:54]}  Rfe8 {[%clk 0:01:32]} 28. Bg5 {[%clk 0:01:48]}  a5 {[%clk 0:01:23]} 29. Nd2 {[%clk 0:01:32]}  a4 {[%clk 0:01:15]} 30. Ne4 {[%clk 0:01:31]}  a3 {[%clk 0:00:58]} 31. Nf6+ {[%clk 0:01:31]}  Bxf6 {[%clk 0:00:54]} 32. Bxf6 {[%clk 0:01:32]}  Rf8 {[%clk 0:00:42]} 33. Kc1 {[%clk 0:01:25]}  Kh7 {[%clk 0:00:41]} 34. Bg5 {[%clk 0:01:20]}  Rac8 {[%clk 0:00:30]} 35. Qf2 {[%clk 0:01:19]}  Qf5 {[%clk 0:00:27]} 36. Qe2 {[%clk 0:01:13]}  c4 {[%clk 0:00:25]} 37. bxc4 {[%clk 0:01:10]}  Rc5 {[%clk 0:00:24]} 38. Bf6 {[%clk 0:01:04]}  Qf4+ {[%clk 0:00:20]} 39. Qd2 {[%clk 0:00:53]}  Qxd2+ {[%clk 0:00:20]} 40. Kxd2 {[%clk 0:00:54]}  Rxc4 {[%clk 0:00:20]} 41. Rb7 {[%clk 0:00:53]}  Kg8 {[%clk 0:00:19]} 42. Rxb6 {[%clk 0:00:52]}  Rfc8 {[%clk 0:00:19]} 43. Ke3 {[%clk 0:00:39]}  Rxc2 {[%clk 0:00:19]} 44. Kf4 {[%clk 0:00:40]}  R2c4+ {[%clk 0:00:17]} 45. Kg5 {[%clk 0:00:39]}  Kh7 {[%clk 0:00:17]} 46. Be7 {[%clk 0:00:38]}  Rg4+ {[%clk 0:00:08]} 47. Kf6 {[%clk 0:00:39]}  Kg8 {[%clk 0:00:08]} 48. Bxa3 {[%clk 0:00:36]}  Rxh4 {[%clk 0:00:06]} 49. Rb7 {[%clk 0:00:27]}  Ra4 {[%clk 0:00:05]} 50. Bd6 {[%clk 0:00:24]}  Rxa2 {[%clk 0:00:05]} 51. Kg5 {[%clk 0:00:24]}  Rf2 {[%clk 0:00:05]} 52. Kh6 {[%clk 0:00:18]}  Rf8 {[%clk 0:00:04]} 53. Rb3 {[%clk 0:00:17]}  Rf5 {[%clk 0:00:02]} 54. Rg3 {[%clk 0:00:16]}  h4 {[%clk 0:00:02]} 55. Rg5 {[%clk 0:00:14]}  Rxg5 {[%clk 0:00:02]} 56. Kxg5 {[%clk 0:00:15]}  h3 {[%clk 0:00:02]} 57. Bxf8 {[%clk 0:00:16]}  h2 {[%clk 0:00:02]} 58. Kg4 {[%clk 0:00:17]}  h1=Q {[%clk 0:00:02]} 59. Bd6 {[%clk 0:00:17]}  Qd5 {[%clk 0:00:01]} 60. Kg5 {[%clk 0:00:18]}  Kg7 {[%clk 0:00:01]} 61. Bf8+ {[%clk 0:00:18]}  Kxf8 {[%clk 0:00:01]} 62. Kf6 {[%clk 0:00:19]}  Qf3+ {[%clk 0:00:01]} 63. Kg5 {[%clk 0:00:19]}  Qf5+ {[%clk 0:00:01]} 64. Kh6 {[%clk 0:00:20]}  Qxe5 {[%clk 0:00:01]} 65. Kh7 {[%clk 0:00:21]}  Qg7# {[%clk 0:00:01]} 0-1


[Site "https://www.chess.com"]

[Event "Titled Tuesday Blitz July 25 Late 2023"]
[White "Rizzo, Tobias"]
[Black "De Souza, Cristiano Gomes"]
[WhiteFideId "30942691"]
[BlackFideId "2151758"]
[WhiteElo "2514"]
[BlackElo "2233"]
[Result "1-0"]
[Round "3"]
[TimeControl "180+2"]
[Date "2023.07.25"]
[WhiteClock "0:00:06"]
[BlackClock "0:00:00"]
[Board "137"]

1. d4 {[%clk 0:03:00]}  Nf6 {[%clk 0:02:58]} 2. Bg5 {[%clk 0:03:01]}  c5 {[%clk 0:02:55]} 3. d5 {[%clk 0:02:57]}  Qb6 {[%clk 0:02:53]} 4. Nc3 {[%clk 0:02:57]}  Qxb2 {[%clk 0:02:52]} 5. Bd2 {[%clk 0:02:56]}  Qb6 {[%clk 0:02:51]} 6. e4 {[%clk 0:02:56]}  d6 {[%clk 0:02:49]} 7. f4 {[%clk 0:02:51]}  e6 {[%clk 0:02:44]} 8. Nf3 {[%clk 0:02:50]}  exd5 {[%clk 0:02:41]} 9. exd5 {[%clk 0:02:50]}  Be7 {[%clk 0:02:39]} 10. Rb1 {[%clk 0:02:42]}  Qd8 {[%clk 0:02:36]} 11. Be2 {[%clk 0:02:38]}  O-O {[%clk 0:02:36]} 12. O-O {[%clk 0:02:38]}  a6 {[%clk 0:02:36]} 13. a4 {[%clk 0:02:39]}  b5 {[%clk 0:02:32]} 14. axb5 {[%clk 0:02:38]}  axb5 {[%clk 0:02:31]} 15. Bxb5 {[%clk 0:02:38]}  Na6 {[%clk 0:02:29]} 16. Re1 {[%clk 0:02:29]}  Nb4 {[%clk 0:02:25]} 17. Bc4 {[%clk 0:02:23]}  Bb7 {[%clk 0:02:21]} 18. Be3 {[%clk 0:02:21]}  Re8 {[%clk 0:02:20]} 19. h3 {[%clk 0:02:19]}  Bf8 {[%clk 0:02:16]} 20. g4 {[%clk 0:02:08]}  Ne4 {[%clk 0:02:11]} 21. Nxe4 {[%clk 0:02:04]}  Rxe4 {[%clk 0:02:07]} 22. Bd3 {[%clk 0:02:04]}  Re8 {[%clk 0:01:55]} 23. Bc4 {[%clk 0:01:43]}  Qc7 {[%clk 0:01:33]} 24. c3 {[%clk 0:01:39]}  Na6 {[%clk 0:01:31]} 25. Rb2 {[%clk 0:01:32]}  Reb8 {[%clk 0:01:27]} 26. Qd3 {[%clk 0:01:28]}  Bc8 {[%clk 0:01:25]} 27. Ra2 {[%clk 0:01:20]}  Rb6 {[%clk 0:01:19]} 28. Rea1 {[%clk 0:01:18]}  Qb7 {[%clk 0:00:55]} 29. Nd2 {[%clk 0:01:07]}  Nc7 {[%clk 0:00:45]} 30. Rxa8 {[%clk 0:01:04]}  Nxa8 {[%clk 0:00:44]} 31. Ne4 {[%clk 0:01:00]}  Nc7 {[%clk 0:00:39]} 32. Ng5 {[%clk 0:00:43]}  g6 {[%clk 0:00:38]} 33. Rd1 {[%clk 0:00:42]}  Bg7 {[%clk 0:00:32]} 34. Bxc5 {[%clk 0:00:35]}  dxc5 {[%clk 0:00:26]} 35. d6 {[%clk 0:00:36]}  Rb2 {[%clk 0:00:26]} 36. Bxf7+ {[%clk 0:00:28]}  Kh8 {[%clk 0:00:20]} 37. Ne4 {[%clk 0:00:25]}  Nb5 {[%clk 0:00:11]} 38. d7 {[%clk 0:00:19]}  Bxd7 {[%clk 0:00:09]} 39. Qxd7 {[%clk 0:00:20]}  Qxd7 {[%clk 0:00:04]} 40. Rxd7 {[%clk 0:00:21]}  Bxc3 {[%clk 0:00:04]} 41. Ng5 {[%clk 0:00:13]}  Bd4+ {[%clk 0:00:02]} 42. Kf1 {[%clk 0:00:09]}  h6 {[%clk 0:00:02]} 43. Ne6 {[%clk 0:00:06]}  Rf2+ {[%clk 0:00:00]} 44. Ke1 {[%clk 0:00:06]} 1-0


[Site "https://www.chess.com"]